[Event "*** Titled Tuesday Blitz"]
[Site "Chess.com"]
[Date "2020.11.03"]
[Round "3"]
[White "Sergienko_Sergey"]
[Black "GAusal"]
[Result "1-0"]
[WhiteElo "2321"]
[BlackElo "2066"]
[TimeControl "180+1"]
[EndTime "10:30:19 PST"]
[Termination "Sergienko_Sergey won on time"]

1. e4 {[%clk 0:02:59]} 1... e6 {[%clk 0:02:37.9]} 2. d4 {[%clk 0:02:58.1]} 2...
d5 {[%clk 0:02:37.5]} 3. Nc3 {[%clk 0:02:57]} 3... Bb4 {[%clk 0:02:15]} 4. e5
{[%clk 0:02:56.3]} 4... Ne7 {[%clk 0:02:11.7]} 5. a3 {[%clk 0:02:55.4]} 5... Ba5
{[%clk 0:02:10.6]} 6. Qg4 {[%clk 0:02:41.4]} 6... c5 {[%clk 0:02:02.8]} 7. Qxg7
{[%clk 0:02:18.5]} 7... Rg8 {[%clk 0:01:58.2]} 8. Qxh7 {[%clk 0:02:18.4]} 8...
cxd4 {[%clk 0:01:54.6]} 9. b4 {[%clk 0:02:18.4]} 9... Bc7 {[%clk 0:01:50.5]} 10.
Nb5 {[%clk 0:02:12.6]} 10... Bxe5 {[%clk 0:01:36]} 11. Nf3 {[%clk 0:02:12.5]}
11... Bd6 {[%clk 0:01:25.2]} 12. Bg5 {[%clk 0:01:58.6]} 12... Rf8 {[%clk
0:01:18.7]} 13. Bh6 {[%clk 0:01:48.1]} 13... Nf5 {[%clk 0:01:12.1]} 14. Nxd6+
{[%clk 0:01:40.4]} 14... Qxd6 {[%clk 0:01:07.5]} 15. Bxf8 {[%clk 0:01:39.4]}
15... Qxf8 {[%clk 0:01:06.7]} 16. Bd3 {[%clk 0:01:36.4]} 16... Nd6 {[%clk
0:01:01.2]} 17. Nxd4 {[%clk 0:01:26.8]} 17... a6 {[%clk 0:00:54.3]} 18. O-O
{[%clk 0:01:22.2]} 18... Nc6 {[%clk 0:00:52.7]} 19. Nxc6 {[%clk 0:01:20.6]}
19... bxc6 {[%clk 0:00:49.2]} 20. Rfe1 {[%clk 0:01:15.1]} 20... a5 {[%clk
0:00:44]} 21. c3 {[%clk 0:01:05.9]} 21... Ba6 {[%clk 0:00:39.1]} 22. Bxa6 {[%clk
0:01:01.8]} 22... Rxa6 {[%clk 0:00:38.6]} 23. h4 {[%clk 0:00:55.4]} 23... Kd7
{[%clk 0:00:34.4]} 24. Qd3 {[%clk 0:00:43.3]} 24... Ra8 {[%clk 0:00:27.3]} 25.
Rad1 {[%clk 0:00:34.5]} 25... Kc7 {[%clk 0:00:25.7]} 26. Qg3 {[%clk 0:00:30.5]}
26... Kd7 {[%clk 0:00:24.2]} 27. Qf4 {[%clk 0:00:28.3]} 27... Nf5 {[%clk
0:00:23.6]} 28. c4 {[%clk 0:00:25.4]} 28... axb4 {[%clk 0:00:22.7]} 29. cxd5
{[%clk 0:00:25]} 1-0

[Event "*** Titled Tuesday Blitz"]
[Site "Chess.com"]
[Date "2020.11.03"]
[Round "3"]
[White "MomchilPetkov"]
[Black "GM_Levan_Pantsulaia"]
[Result "1-0"]
[WhiteElo "2657"]
[BlackElo "2841"]
[TimeControl "180+1"]
[EndTime "10:30:20 PST"]
[Termination "MomchilPetkov won by resignation"]

1. d4 {[%clk 0:03:00.9]} 1... Nf6 {[%clk 0:02:59.3]} 2. Bf4 {[%clk 0:03:00.6]}
2... d6 {[%clk 0:02:49.7]} 3. Nf3 {[%clk 0:02:57.1]} 3... g6 {[%clk 0:02:47]} 4.
h3 {[%clk 0:02:54.6]} 4... Bg7 {[%clk 0:02:46.9]} 5. e3 {[%clk 0:02:54.4]} 5...
O-O {[%clk 0:02:46.3]} 6. Be2 {[%clk 0:02:55]} 6... b6 {[%clk 0:02:46.2]} 7. O-O
{[%clk 0:02:54.8]} 7... Bb7 {[%clk 0:02:46.8]} 8. c4 {[%clk 0:02:48.3]} 8...
Nfd7 {[%clk 0:02:35.4]} 9. Nc3 {[%clk 0:02:47.2]} 9... e5 {[%clk 0:02:35.4]} 10.
Bh2 {[%clk 0:02:47.8]} 10... Nc6 {[%clk 0:02:34.7]} 11. Rc1 {[%clk 0:02:34.7]}
11... Re8 {[%clk 0:02:34.2]} 12. Re1 {[%clk 0:02:19.9]} 12... h6 {[%clk
0:02:26.9]} 13. Nd5 {[%clk 0:02:17.1]} 13... Ne7 {[%clk 0:02:25.1]} 14. dxe5
{[%clk 0:02:14.8]} 14... dxe5 {[%clk 0:02:19.3]} 15. Nc3 {[%clk 0:01:56.4]}
15... Nf5 {[%clk 0:02:07.7]} 16. Qc2 {[%clk 0:01:41.7]} 16... e4 {[%clk
0:01:44.6]} 17. Nd2 {[%clk 0:01:41.1]} 17... Nc5 {[%clk 0:01:44.8]} 18. Red1
{[%clk 0:01:17.9]} 18... Qc8 {[%clk 0:00:56.5]} 19. Nd5 {[%clk 0:01:14.7]} 19...
Bxd5 {[%clk 0:00:38]} 20. cxd5 {[%clk 0:01:14.3]} 20... a5 {[%clk 0:00:38.9]}
21. Bb5 {[%clk 0:01:07]} 21... Re7 {[%clk 0:00:37.1]} 22. Bc6 {[%clk 0:01:04.1]}
22... Rb8 {[%clk 0:00:37.4]} 23. a3 {[%clk 0:01:00.6]} 23... Nh4 {[%clk
0:00:23.3]} 24. d6 {[%clk 0:00:50.3]} 24... cxd6 {[%clk 0:00:21.5]} 25. Bxd6
{[%clk 0:00:51.2]} 25... Re6 {[%clk 0:00:18.3]} 26. Bxb8 {[%clk 0:00:49.2]}
26... Rxc6 {[%clk 0:00:13.6]} 27. Bg3 {[%clk 0:00:48.4]} 27... Nf5 {[%clk
0:00:13.5]} 28. Nxe4 {[%clk 0:00:47.3]} 28... Nxg3 {[%clk 0:00:08.2]} 29. Nxg3
{[%clk 0:00:47.9]} 29... a4 {[%clk 0:00:08.7]} 30. Qe2 {[%clk 0:00:47.1]} 30...
Be5 {[%clk 0:00:08.6]} 31. f4 {[%clk 0:00:46.3]} 31... Bg7 {[%clk 0:00:08.2]}
32. Qf3 {[%clk 0:00:46.9]} 32... Re6 {[%clk 0:00:08.3]} 33. Rc2 {[%clk
0:00:44.4]} 33... Qe8 {[%clk 0:00:07.7]} 34. Rcd2 {[%clk 0:00:42.1]} 34... Rxe3
{[%clk 0:00:06.6]} 35. Rd8 {[%clk 0:00:42.2]} 35... Re1+ {[%clk 0:00:06.2]} 36.
Kh2 {[%clk 0:00:37.9]} 1-0

[Event "*** Titled Tuesday Blitz"]
[Site "Chess.com"]
[Date "2020.11.03"]
[Round "3"]
[White "ErikRonka"]
[Black "KingCrusher275"]
[Result "0-1"]
[WhiteElo "2378"]
[BlackElo "2598"]
[TimeControl "180+1"]
[EndTime "10:30:21 PST"]
[Termination "KingCrusher275 won by resignation"]

1. e4 {[%clk 0:03:00.9]} 1... c5 {[%clk 0:02:59.9]} 2. Nf3 {[%clk 0:03:00.9]}
2... e6 {[%clk 0:03:00.2]} 3. d4 {[%clk 0:03:01.3]} 3... cxd4 {[%clk 0:03:01.1]}
4. Nxd4 {[%clk 0:03:01.9]} 4... Nc6 {[%clk 0:03:01.8]} 5. Nc3 {[%clk 0:03:02.2]}
5... Qc7 {[%clk 0:02:57.7]} 6. Qd3 {[%clk 0:03:01.5]} 6... a6 {[%clk 0:02:56.3]}
7. Nxc6 {[%clk 0:03:01.7]} 7... dxc6 {[%clk 0:02:53.9]} 8. Qg3 {[%clk
0:03:02.6]} 8... Qxg3 {[%clk 0:02:51.9]} 9. hxg3 {[%clk 0:03:03.5]} 9... Nf6
{[%clk 0:02:49.1]} 10. e5 {[%clk 0:02:59.9]} 10... Nd5 {[%clk 0:02:44.7]} 11.
Ne4 {[%clk 0:02:57.8]} 11... b5 {[%clk 0:02:40.8]} 12. a3 {[%clk 0:02:39.3]}
12... Bb7 {[%clk 0:02:31.6]} 13. c4 {[%clk 0:02:36.4]} 13... bxc4 {[%clk
0:02:27.3]} 14. Bxc4 {[%clk 0:02:35.4]} 14... c5 {[%clk 0:02:22]} 15. f3 {[%clk
0:01:24.9]} 15... Be7 {[%clk 0:02:14]} 16. Ke2 {[%clk 0:01:22.9]} 16... O-O
{[%clk 0:01:42.5]} 17. Bd2 {[%clk 0:01:06.3]} 17... Nb6 {[%clk 0:01:23.3]} 18.
Bd3 {[%clk 0:01:06]} 18... c4 {[%clk 0:01:09]} 19. Bc2 {[%clk 0:01:05.6]} 19...
h6 {[%clk 0:00:45.2]} 20. g4 {[%clk 0:00:54.3]} 20... Nd7 {[%clk 0:00:42.2]} 21.
g5 {[%clk 0:00:51.3]} 21... Bxe4 {[%clk 0:00:39.3]} 22. Bxe4 {[%clk 0:00:49.1]}
22... Rab8 {[%clk 0:00:38.1]} 23. gxh6 {[%clk 0:00:48.8]} 23... Rxb2 {[%clk
0:00:35.9]} 24. hxg7 {[%clk 0:00:48.6]} 24... Rd8 {[%clk 0:00:32.6]} 25. Rh8+
{[%clk 0:00:14.1]} 25... Kxg7 {[%clk 0:00:22.3]} 26. Rh7+ {[%clk 0:00:15]} 26...
Kg8 {[%clk 0:00:20.6]} 27. Rah1 {[%clk 0:00:15]} 27... Nf8 {[%clk 0:00:17.6]}
28. Rh8+ {[%clk 0:00:14.8]} 28... Kg7 {[%clk 0:00:15.8]} 29. R8h7+ {[%clk
0:00:02.7]} 29... Nxh7 {[%clk 0:00:15.7]} 30. Rxh7+ {[%clk 0:00:03.6]} 30... Kg8
{[%clk 0:00:15.9]} 0-1

[Event "*** Titled Tuesday Blitz"]
[Site "Chess.com"]
[Date "2020.11.03"]
[Round "3"]
[White "MissingLife"]
[Black "Chessdude1987"]
[Result "1-0"]
[WhiteElo "2109"]
[BlackElo "2296"]
[TimeControl "180+1"]
[EndTime "10:30:21 PST"]
[Termination "MissingLife won by checkmate"]

1. Nf3 {[%clk 0:02:59.8]} 1... Nf6 {[%clk 0:02:59.3]} 2. g3 {[%clk 0:03:00.3]}
2... g6 {[%clk 0:02:59.1]} 3. c4 {[%clk 0:03:01.2]} 3... Bg7 {[%clk 0:02:58.7]}
4. Bg2 {[%clk 0:03:02.1]} 4... O-O {[%clk 0:02:56.5]} 5. O-O {[%clk 0:03:03]}
5... d6 {[%clk 0:02:56.8]} 6. d3 {[%clk 0:03:02.9]} 6... Nc6 {[%clk 0:02:56.7]}
7. Nc3 {[%clk 0:03:03.1]} 7... a6 {[%clk 0:02:53.9]} 8. Rb1 {[%clk 0:03:03]}
8... Rb8 {[%clk 0:02:53.6]} 9. b4 {[%clk 0:03:03.2]} 9... b5 {[%clk 0:02:52.8]}
10. a4 {[%clk 0:03:00.8]} 10... bxc4 {[%clk 0:02:52]} 11. b5 {[%clk 0:03:01.1]}
11... axb5 {[%clk 0:02:50]} 12. axb5 {[%clk 0:02:59.9]} 12... Na5 {[%clk
0:02:48.9]} 13. Qa4 {[%clk 0:02:55.1]} 13... c6 {[%clk 0:02:36]} 14. dxc4 {[%clk
0:02:42.6]} 14... Nd7 {[%clk 0:02:29.3]} 15. Bd2 {[%clk 0:02:35.5]} 15... Nc5
{[%clk 0:02:25.7]} 16. Qa2 {[%clk 0:02:34.3]} 16... Be6 {[%clk 0:02:01.3]} 17.
Rb4 {[%clk 0:02:06.7]} 17... cxb5 {[%clk 0:01:53.4]} 18. Rxb5 {[%clk 0:01:46]}
18... Nxc4 {[%clk 0:01:35.2]} 19. Rxb8 {[%clk 0:01:28.1]} 19... Qxb8 {[%clk
0:01:34.5]} 20. Ng5 {[%clk 0:01:27.8]} 20... Nxd2 {[%clk 0:01:33.1]} 21. Qxd2
{[%clk 0:01:28.7]} 21... Bd7 {[%clk 0:01:28.9]} 22. Nd5 {[%clk 0:01:28.4]} 22...
Qd8 {[%clk 0:01:25.1]} 23. Rb1 {[%clk 0:01:18]} 23... e6 {[%clk 0:01:24]} 24.
Nb4 {[%clk 0:01:17]} 24... d5 {[%clk 0:01:19.9]} 25. h4 {[%clk 0:01:07.2]} 25...
f6 {[%clk 0:01:17.2]} 26. Nf3 {[%clk 0:00:58.1]} 26... Ne4 {[%clk 0:01:17.1]}
27. Qe3 {[%clk 0:00:58.4]} 27... Qa5 {[%clk 0:01:13.2]} 28. Nd4 {[%clk
0:00:52.6]} 28... Rb8 {[%clk 0:01:09.8]} 29. Ndc2 {[%clk 0:00:39.8]} 29... f5
{[%clk 0:01:07.2]} 30. h5 {[%clk 0:00:28.5]} 30... Ba4 {[%clk 0:01:01.5]} 31.
Qf4 {[%clk 0:00:26.8]} 31... e5 {[%clk 0:00:53.8]} 32. Qc1 {[%clk 0:00:26.9]}
32... Bxc2 {[%clk 0:00:52.4]} 33. Nxc2 {[%clk 0:00:27.8]} 33... Rc8 {[%clk
0:00:46]} 34. hxg6 {[%clk 0:00:21.2]} 34... hxg6 {[%clk 0:00:43.3]} 35. Qb2
{[%clk 0:00:21]} 35... Qd2 {[%clk 0:00:40.6]} 36. Bxe4 {[%clk 0:00:17.4]} 36...
dxe4 {[%clk 0:00:38.4]} 37. Qb3+ {[%clk 0:00:17.8]} 37... Kh7 {[%clk 0:00:37.8]}
38. Kg2 {[%clk 0:00:16.4]} 38... Qxc2 {[%clk 0:00:37.3]} 39. Rh1+ {[%clk
0:00:16.9]} 39... Bh6 {[%clk 0:00:30.3]} 40. Qf7+ {[%clk 0:00:17.2]} 40... Kh8
{[%clk 0:00:30.3]} 41. Rxh6# {[%clk 0:00:18.1]} 1-0

[Event "*** Titled Tuesday Blitz"]
[Site "Chess.com"]
[Date "2020.11.03"]
[Round "3"]
[White "krzyzan94"]
[Black "Ajedrez_con_German"]
[Result "1-0"]
[WhiteElo "2649"]
[BlackElo "2472"]
[TimeControl "180+1"]
[EndTime "10:30:22 PST"]
[Termination "krzyzan94 won by resignation"]

1. d4 {[%clk 0:03:00.9]} 1... d5 {[%clk 0:02:57.3]} 2. Nf3 {[%clk 0:03:00.2]}
2... c6 {[%clk 0:02:54.7]} 3. c4 {[%clk 0:02:57.2]} 3... Nf6 {[%clk 0:02:54]} 4.
Nc3 {[%clk 0:02:56.8]} 4... e6 {[%clk 0:02:51.6]} 5. cxd5 {[%clk 0:02:57]} 5...
exd5 {[%clk 0:02:51.1]} 6. Bg5 {[%clk 0:02:57.6]} 6... Be7 {[%clk 0:02:48.6]} 7.
e3 {[%clk 0:02:57.5]} 7... Bf5 {[%clk 0:02:46.8]} 8. Qb3 {[%clk 0:02:47.5]} 8...
Qb6 {[%clk 0:02:46.2]} 9. Ne5 {[%clk 0:02:43.6]} 9... Qxb3 {[%clk 0:02:34.9]}
10. axb3 {[%clk 0:02:44.5]} 10... Nbd7 {[%clk 0:02:33.5]} 11. f3 {[%clk
0:02:37.6]} 11... Nxe5 {[%clk 0:02:29.4]} 12. dxe5 {[%clk 0:02:38.5]} 12... Nd7
{[%clk 0:02:29.4]} 13. Bxe7 {[%clk 0:02:32.1]} 13... Kxe7 {[%clk 0:02:27.6]} 14.
g4 {[%clk 0:02:27.3]} 14... Be6 {[%clk 0:02:17.4]} 15. f4 {[%clk 0:02:28.2]}
15... Bxg4 {[%clk 0:02:12.5]} 16. Rg1 {[%clk 0:02:28.2]} 16... Bf5 {[%clk
0:02:07.5]} 17. Rxg7 {[%clk 0:02:18.5]} 17... Nc5 {[%clk 0:01:39]} 18. b4 {[%clk
0:02:13.4]} 18... Nd3+ {[%clk 0:01:27.5]} 19. Bxd3 {[%clk 0:02:12.6]} 19... Bxd3
{[%clk 0:01:28]} 20. Rg3 {[%clk 0:02:08.7]} 20... a6 {[%clk 0:01:21.2]} 21. Kd2
{[%clk 0:02:06.6]} 21... Bf5 {[%clk 0:01:16.9]} 22. Na4 {[%clk 0:02:06.3]} 22...
Rag8 {[%clk 0:01:13.4]} 23. Rag1 {[%clk 0:02:04.1]} 23... Rg6 {[%clk 0:01:11.7]}
24. Nc5 {[%clk 0:02:03.9]} 24... Bc8 {[%clk 0:01:11.3]} 25. Nb3 {[%clk
0:02:02.4]} 25... Rhg8 {[%clk 0:01:10.7]} 26. Nd4 {[%clk 0:02:02.6]} 26... f6
{[%clk 0:01:03.7]} 27. exf6+ {[%clk 0:01:46.2]} 27... Kxf6 {[%clk 0:01:04.6]}
28. Nf3 {[%clk 0:01:45.5]} 28... Bf5 {[%clk 0:00:55]} 29. Ne5 {[%clk 0:01:45.5]}
29... Rxg3 {[%clk 0:00:54.2]} 30. hxg3 {[%clk 0:01:46]} 30... Rd8 {[%clk
0:00:34.4]} 31. g4 {[%clk 0:01:43.8]} 31... Be4 {[%clk 0:00:34.2]} 32. Kc3
{[%clk 0:01:43.4]} 32... b6 {[%clk 0:00:29.7]} 33. Kd4 {[%clk 0:01:34]} 33...
c5+ {[%clk 0:00:27]} 34. bxc5 {[%clk 0:01:34.9]} 34... bxc5+ {[%clk 0:00:27.5]}
35. Kxc5 {[%clk 0:01:35.6]} 35... Rc8+ {[%clk 0:00:28.1]} 36. Kd6 {[%clk
0:01:34.2]} 36... Rc2 {[%clk 0:00:24.1]} 37. Ra1 {[%clk 0:01:33]} 37... Rxb2
{[%clk 0:00:21.9]} 38. Rxa6 {[%clk 0:01:33.4]} 38... Rb3 {[%clk 0:00:20.9]} 39.
Ra7 {[%clk 0:01:30.9]} 39... Rb6+ {[%clk 0:00:18.2]} 40. Kc5 {[%clk 0:01:30.6]}
40... Rb3 {[%clk 0:00:18.4]} 41. Ra6+ {[%clk 0:01:22.1]} 41... Ke7 {[%clk
0:00:17.2]} 42. Nc6+ {[%clk 0:01:20.9]} 42... Kf7 {[%clk 0:00:15.7]} 43. Kd4
{[%clk 0:01:19.9]} 43... Rb1 {[%clk 0:00:14.5]} 44. Ne5+ {[%clk 0:01:14.3]}
44... Ke7 {[%clk 0:00:14]} 45. Ra7+ {[%clk 0:01:14.7]} 45... Ke8 {[%clk
0:00:11.5]} 46. f5 {[%clk 0:01:14.6]} 46... Rd1+ {[%clk 0:00:08.4]} 47. Kc5
{[%clk 0:01:14.7]} 47... Re1 {[%clk 0:00:07.8]} 48. Kd6 {[%clk 0:01:12.2]} 48...
d4 {[%clk 0:00:04.7]} 49. exd4 {[%clk 0:01:13.1]} 49... Rd1 {[%clk 0:00:03]} 50.
Re7+ {[%clk 0:01:13.6]} 50... Kd8 {[%clk 0:00:03.1]} 51. Nf7+ {[%clk 0:01:12.6]}
51... Kc8 {[%clk 0:00:03.1]} 52. Rxe4 {[%clk 0:01:13.5]} 1-0

[Event "*** Titled Tuesday Blitz"]
[Site "Chess.com"]
[Date "2020.11.03"]
[Round "3"]
[White "Xeniya2005"]
[Black "keshka01"]
[Result "1-0"]
[WhiteElo "2385"]
[BlackElo "2559"]
[TimeControl "180+1"]
[EndTime "10:30:22 PST"]
[Termination "Xeniya2005 won by resignation"]

1. e4 {[%clk 0:03:00.9]} 1... Nf6 {[%clk 0:03:00.2]} 2. e5 {[%clk 0:03:00.5]}
2... Nd5 {[%clk 0:03:00.8]} 3. d4 {[%clk 0:03:00.4]} 3... d6 {[%clk 0:03:01.3]}
4. exd6 {[%clk 0:03:00.3]} 4... exd6 {[%clk 0:03:01.7]} 5. c4 {[%clk 0:02:58.8]}
5... Nb6 {[%clk 0:03:01.6]} 6. h3 {[%clk 0:02:57.4]} 6... Be7 {[%clk 0:03:01.3]}
7. Nf3 {[%clk 0:02:54.9]} 7... O-O {[%clk 0:03:01.9]} 8. Bf4 {[%clk 0:02:54.3]}
8... Bf6 {[%clk 0:03:02.1]} 9. Be2 {[%clk 0:02:53.9]} 9... Nc6 {[%clk
0:02:58.3]} 10. O-O {[%clk 0:02:52.8]} 10... Re8 {[%clk 0:02:49.7]} 11. Nc3
{[%clk 0:02:51.6]} 11... Bf5 {[%clk 0:02:42.3]} 12. Rc1 {[%clk 0:02:48]} 12...
h6 {[%clk 0:02:37.8]} 13. b3 {[%clk 0:02:34.1]} 13... a5 {[%clk 0:02:34.3]} 14.
a4 {[%clk 0:02:25]} 14... Nb4 {[%clk 0:02:28]} 15. Qd2 {[%clk 0:02:21.9]} 15...
c6 {[%clk 0:01:57]} 16. Rfe1 {[%clk 0:02:07.8]} 16... d5 {[%clk 0:01:56.5]} 17.
c5 {[%clk 0:02:04.9]} 17... Nd7 {[%clk 0:01:50.8]} 18. Na2 {[%clk 0:02:00.9]}
18... Nxa2 {[%clk 0:01:47.2]} 19. Qxa2 {[%clk 0:02:01]} 19... Nf8 {[%clk
0:01:47.5]} 20. Qd2 {[%clk 0:01:55]} 20... Ne6 {[%clk 0:01:43.9]} 21. Bg3 {[%clk
0:01:45.1]} 21... Ng5 {[%clk 0:01:41.2]} 22. Nxg5 {[%clk 0:01:38.5]} 22... Bxg5
{[%clk 0:01:42.1]} 23. Bf4 {[%clk 0:01:25.9]} 23... Re4 {[%clk 0:01:33.1]} 24.
Bxg5 {[%clk 0:01:20.8]} 24... Qxg5 {[%clk 0:01:34]} 25. Qc3 {[%clk 0:01:01.1]}
25... Bxh3 {[%clk 0:01:14.2]} 26. Qxh3 {[%clk 0:00:41.4]} 26... Rxe2 {[%clk
0:01:14.4]} 27. Rxe2 {[%clk 0:00:40.1]} 27... Qxc1+ {[%clk 0:01:14.5]} 28. Kh2
{[%clk 0:00:40.2]} 28... Qf4+ {[%clk 0:01:15.1]} 29. Qg3 {[%clk 0:00:40.5]}
29... Qxd4 {[%clk 0:01:15.5]} 30. Re7 {[%clk 0:00:39.8]} 30... Qxc5 {[%clk
0:01:08.3]} 31. Rxb7 {[%clk 0:00:38.4]} 31... Re8 {[%clk 0:00:37.4]} 32. Qf4
{[%clk 0:00:32.8]} 32... Re7 {[%clk 0:00:29.6]} 33. Rb8+ {[%clk 0:00:21.2]}
33... Kh7 {[%clk 0:00:19.9]} 34. Qf5+ {[%clk 0:00:21.1]} 34... g6 {[%clk
0:00:19.5]} 35. Qf6 {[%clk 0:00:21]} 1-0

[Event "*** Titled Tuesday Blitz"]
[Site "Chess.com"]
[Date "2020.11.03"]
[Round "3"]
[White "grandcoach"]
[Black "UmarovSabir"]
[Result "0-1"]
[WhiteElo "2086"]
[BlackElo "2330"]
[TimeControl "180+1"]
[EndTime "10:30:22 PST"]
[Termination "UmarovSabir won on time"]

1. e4 {[%clk 0:03:00.9]} 1... g6 {[%clk 0:02:59.7]} 2. d4 {[%clk 0:02:59.8]}
2... Bg7 {[%clk 0:02:59.6]} 3. Nc3 {[%clk 0:03:00.3]} 3... c6 {[%clk 0:02:59.7]}
4. f4 {[%clk 0:02:56.1]} 4... d5 {[%clk 0:02:59.8]} 5. e5 {[%clk 0:02:55.1]}
5... Nh6 {[%clk 0:02:59.6]} 6. Nf3 {[%clk 0:02:53.9]} 6... O-O {[%clk
0:02:58.1]} 7. Be2 {[%clk 0:02:44.5]} 7... Bg4 {[%clk 0:02:53.1]} 8. h3 {[%clk
0:02:42.3]} 8... Bxf3 {[%clk 0:02:52.8]} 9. Bxf3 {[%clk 0:02:43.2]} 9... Nf5
{[%clk 0:02:42.3]} 10. O-O {[%clk 0:02:42.3]} 10... e6 {[%clk 0:02:39.2]} 11.
Ne2 {[%clk 0:02:30.2]} 11... c5 {[%clk 0:02:35.7]} 12. c3 {[%clk 0:02:28.8]}
12... Qb6 {[%clk 0:02:18.7]} 13. g4 {[%clk 0:02:23]} 13... Ne7 {[%clk
0:02:12.1]} 14. Be3 {[%clk 0:02:11.9]} 14... cxd4 {[%clk 0:01:58.9]} 15. cxd4
{[%clk 0:02:05.8]} 15... Qxb2 {[%clk 0:01:56.1]} 16. Rb1 {[%clk 0:02:05.3]}
16... Qa3 {[%clk 0:01:55.7]} 17. Rb3 {[%clk 0:02:01.3]} 17... Qa6 {[%clk
0:01:53.7]} 18. Ng3 {[%clk 0:01:49.6]} 18... Nbc6 {[%clk 0:01:47.4]} 19. f5
{[%clk 0:01:49.4]} 19... f6 {[%clk 0:01:20.4]} 20. Be2 {[%clk 0:01:22.3]} 20...
Qxa2 {[%clk 0:01:09.8]} 21. Rxb7 {[%clk 0:01:21.5]} 21... fxe5 {[%clk
0:01:05.8]} 22. fxg6 {[%clk 0:00:43.6]} 22... Nxg6 {[%clk 0:00:58.5]} 23. Nh5
{[%clk 0:00:37.2]} 23... Bh8 {[%clk 0:00:36.5]} 24. Bh6 {[%clk 0:00:20]} 24...
Nxd4 {[%clk 0:00:36.4]} 25. Bd3 {[%clk 0:00:13.2]} 25... e4 {[%clk 0:00:35]} 26.
Bxf8 {[%clk 0:00:11.6]} 26... Rxf8 {[%clk 0:00:31.4]} 27. Rxf8+ {[%clk
0:00:11.1]} 27... Nxf8 {[%clk 0:00:30.7]} 28. Qf1 {[%clk 0:00:07.2]} 28... Nf3+
{[%clk 0:00:30.5]} 29. Qxf3 {[%clk 0:00:01.3]} 29... exf3 {[%clk 0:00:30.5]} 30.
Bxh7+ {[%clk 0:00:01.2]} 30... Nxh7 {[%clk 0:00:30.2]} 0-1

[Event "*** Titled Tuesday Blitz"]
[Site "Chess.com"]
[Date "2020.11.03"]
[Round "3"]
[White "FontVella8"]
[Black "RamyresCoelho"]
[Result "1-0"]
[WhiteElo "2477"]
[BlackElo "2049"]
[TimeControl "180+1"]
[EndTime "10:30:23 PST"]
[Termination "FontVella8 won by resignation"]

1. e4 {[%clk 0:03:00.9]} 1... c5 {[%clk 0:02:59.9]} 2. Nf3 {[%clk 0:02:59.6]}
2... d6 {[%clk 0:02:59.9]} 3. d4 {[%clk 0:03:00]} 3... cxd4 {[%clk 0:03:00.8]}
4. Qxd4 {[%clk 0:03:00.4]} 4... Nc6 {[%clk 0:02:59.5]} 5. Qe3 {[%clk 0:03:00.3]}
5... Nf6 {[%clk 0:02:56.3]} 6. c4 {[%clk 0:02:59.8]} 6... e5 {[%clk 0:02:52.7]}
7. h3 {[%clk 0:02:57]} 7... h6 {[%clk 0:02:53.2]} 8. Be2 {[%clk 0:02:57]} 8...
Be7 {[%clk 0:02:52.9]} 9. Nc3 {[%clk 0:02:57.6]} 9... O-O {[%clk 0:02:53.3]} 10.
O-O {[%clk 0:02:57.3]} 10... Be6 {[%clk 0:02:53.4]} 11. Rd1 {[%clk 0:02:57.2]}
11... a6 {[%clk 0:02:51.7]} 12. b3 {[%clk 0:02:57.4]} 12... Qc7 {[%clk
0:02:50.8]} 13. Bb2 {[%clk 0:02:57.5]} 13... Rfd8 {[%clk 0:02:50.6]} 14. Rd2
{[%clk 0:02:57.8]} 14... Rac8 {[%clk 0:02:51.1]} 15. Rad1 {[%clk 0:02:57.3]}
15... Bf8 {[%clk 0:02:50.3]} 16. Nd5 {[%clk 0:02:48.6]} 16... Bxd5 {[%clk
0:02:46.6]} 17. exd5 {[%clk 0:02:49.5]} 17... Ne7 {[%clk 0:02:45.4]} 18. Nxe5
{[%clk 0:02:27.2]} 18... dxe5 {[%clk 0:02:25.5]} 19. d6 {[%clk 0:02:26.8]} 19...
Qb8 {[%clk 0:02:01.3]} 20. dxe7 {[%clk 0:02:08.9]} 20... Bxe7 {[%clk 0:02:02.2]}
21. Bxe5 {[%clk 0:02:06.8]} 21... Qa8 {[%clk 0:01:55.4]} 22. Bf3 {[%clk
0:02:04.4]} 22... Rxd2 {[%clk 0:01:52.6]} 23. Rxd2 {[%clk 0:02:04.4]} 23... Rd8
{[%clk 0:01:51.9]} 24. Rxd8+ {[%clk 0:02:01.9]} 24... Qxd8 {[%clk 0:01:51.1]}
25. Bxb7 {[%clk 0:01:57.9]} 25... a5 {[%clk 0:01:42.6]} 26. Qd4 {[%clk
0:01:49.6]} 26... Qf8 {[%clk 0:01:37.9]} 27. Bc7 {[%clk 0:01:38.3]} 27... Bc5
{[%clk 0:01:34.3]} 28. Qd8 {[%clk 0:01:36.7]} 28... Ne8 {[%clk 0:01:30]} 29.
Bxa5 {[%clk 0:01:29.1]} 29... g5 {[%clk 0:01:02.9]} 30. Bc6 {[%clk 0:01:25.8]}
30... Bxf2+ {[%clk 0:00:59.7]} 31. Kf1 {[%clk 0:01:20.2]} 31... Qd6 {[%clk
0:00:35.7]} 32. Qxd6 {[%clk 0:01:14.7]} 32... Nxd6 {[%clk 0:00:35.4]} 33. Kxf2
{[%clk 0:01:15.3]} 33... f5 {[%clk 0:00:34]} 34. c5 {[%clk 0:01:14.3]} 34... Nc8
{[%clk 0:00:31.4]} 35. Bd8 {[%clk 0:01:06.9]} 35... Kf7 {[%clk 0:00:30.4]} 36.
Bd7 {[%clk 0:01:05.9]} 36... Na7 {[%clk 0:00:29.8]} 37. Bb6 {[%clk 0:01:05.4]}
37... Ke7 {[%clk 0:00:27.5]} 38. Bxa7 {[%clk 0:01:05]} 38... Kxd7 {[%clk
0:00:28.4]} 39. b4 {[%clk 0:01:04.2]} 39... Kc6 {[%clk 0:00:29.3]} 40. Bb6
{[%clk 0:01:04.5]} 40... Kb5 {[%clk 0:00:29]} 41. Ke3 {[%clk 0:01:05]} 41... h5
{[%clk 0:00:29.1]} 42. a4+ {[%clk 0:01:03.7]} 42... Kxa4 {[%clk 0:00:27.2]} 43.
c6 {[%clk 0:01:03.9]} 43... Kxb4 {[%clk 0:00:28.1]} 44. c7 {[%clk 0:01:04.3]}
44... Kb5 {[%clk 0:00:29]} 45. c8=Q {[%clk 0:01:04.4]} 45... Kxb6 {[%clk
0:00:29.9]} 46. Qxf5 {[%clk 0:01:04.9]} 46... g4 {[%clk 0:00:30.3]} 47. h4
{[%clk 0:01:03.5]} 47... g3 {[%clk 0:00:29.3]} 48. Qxh5 {[%clk 0:01:03.6]} 48...
Kc6 {[%clk 0:00:30.2]} 49. Qg4 {[%clk 0:01:04.3]} 49... Kd6 {[%clk 0:00:31.1]}
50. Qxg3+ {[%clk 0:01:05]} 50... Ke6 {[%clk 0:00:31.2]} 51. Qg5 {[%clk
0:01:05.6]} 51... Kf7 {[%clk 0:00:27.7]} 52. h5 {[%clk 0:01:05.8]} 52... Ke6
{[%clk 0:00:28.6]} 53. h6 {[%clk 0:01:06.3]} 53... Kf7 {[%clk 0:00:29.5]} 54. h7
{[%clk 0:01:06.7]} 54... Kf8 {[%clk 0:00:30.4]} 55. h8=N {[%clk 0:01:06]} 55...
Ke8 {[%clk 0:00:29.6]} 56. g4 {[%clk 0:01:06]} 56... Kf8 {[%clk 0:00:29.7]} 57.
Qg6 {[%clk 0:01:05.8]} 1-0